bitfinex/quotes_ETHUSD_20251122
["timestamp","ask_amount","ask_price","bid_price","bid_amount"]
[1763844873277,0.77729674,2739.2,2738.9,0.4542]
[1763844873604,0.123,2739.1,2738.9,0.4542]
[1763844873947,0.123,2739.1,2739.0,0.4542]
[1763844874449,0.5792,2739.1,2738.7,0.133]
[1763844874650,0.5792,2739.1,2738.7,0.5872]
[1763844874848,0.867304,2739.0,2738.3,0.4552]
[1763844875786,0.34538007,2739.1,2738.3,0.4552]
[1763844876487,0.405504,2739.0,2738.3,0.4552]
[1763844876788,0.405504,2738.9,2738.3,0.001]
[1763844877102,0.405504,2739.0,2738.4,0.4542]
[1763844877261,0.405504,2739.0,2738.8,0.4542]
[1763844877596,0.405504,2739.0,2738.9,0.4542]
[1763844878398,0.34538007,2739.1,2738.9,0.4542]
[1763844878399,0.407504,2739.2,2738.9,0.9084]
[1763844878560,0.002,2739.2,2739.1,0.5872]
[1763844878758,0.125,2739.2,2739.1,0.5872]
[1763844878982,0.002,2739.2,2739.1,0.5872]
[1763844879180,0.125,2739.2,2739.1,1.0414]
[1763844881204,0.002,2739.2,2739.1,1.0414]
[1763844881391,0.125,2739.2,2739.1,1.0414]
[1763844883401,0.002,2739.2,2739.1,1.0414]
[1763844884606,0.002,2739.2,2739.1,3.57530101]
[1763844884810,0.002,2739.2,2739.1,7.58366532]
[1763844885575,0.002,2739.2,2739.1,7.68121532]
[1763844886009,0.002,2739.4,2739.3,0.09755]
[1763844886206,0.002,2739.4,2739.3,0.55175]
[1763844886411,0.002,2739.4,2739.3,0.9084]
[1763844887125,0.002,2739.4,2739.3,1.00595]
[1763844887331,0.002,2739.4,2739.3,4.55896766]
[1763844887696,0.002,2739.4,2739.3,0.9084]
[1763844890626,0.002,2739.4,2739.3,0.4542]
[1763844890827,0.002,2739.4,2739.3,0.9084]
[1763844893537,0.002,2739.4,2739.3,1.37761498]
[1763844893835,0.002,2739.4,2739.3,0.4542]
[1763844894039,0.002,2739.4,2739.3,0.9084]
[1763844895002,0.002,2739.4,2739.3,4.59547333]
[1763844895201,0.002,2739.4,2739.3,4.65651766]
[1763844897064,0.002,2739.4,2739.3,0.9084]
[1763844897403,0.002,2739.4,2739.3,4.55896766]
[1763844897610,0.002,2739.4,2739.3,4.65651766]
[1763844898218,0.002,2739.4,2739.3,4.69302333]
[1763844899049,0.002,2739.4,2739.3,4.65651766]
[1763844899817,0.002,2739.4,2739.3,0.9084]
[1763844900022,0.002,2739.4,2739.3,1.2782301]
[1763844900222,0.002,2739.4,2739.3,4.92879776]
[1763844900558,0.002,2739.4,2739.3,1.2782301]
[1763844900738,0.002,2739.4,2739.3,0.8240301]
[1763844900943,0.002,2739.4,2739.3,0.4542]
[1763844901377,0.481,2739.4,2738.8,0.133]
[1763844901549,0.481,2739.4,2738.8,0.256]
[1763844901760,0.481,2739.4,2738.8,0.7102]
[1763844901952,0.481,2739.4,2738.6,3.65239631]
[1763844901953,0.4082,2738.9,2738.6,0.001]
[1763844902258,0.876804,2739.3,2738.6,0.3892]
[1763844902569,0.405504,2739.1,2738.6,0.3892]
[1763844902869,0.405504,2739.1,2738.6,0.001]
[1763844903067,0.4713,2739.0,2738.6,0.001]
[1763844903384,0.405504,2739.1,2738.6,0.001]
[1763844903670,0.876804,2739.1,2738.6,0.4552]
[1763844903872,0.876804,2739.1,2738.6,0.86599581]
[1763844904035,0.876804,2739.1,2738.6,0.41179581]
[1763844904650,0.405504,2739.1,2738.6,0.86599581]
[1763844904825,0.405504,2739.2,2738.6,0.86599581]
[1763844905941,0.871604,2739.2,2738.6,0.41179581]
[1763844906137,0.871604,2739.2,2738.6,0.001]
[1763844906378,0.4661,2739.1,2738.6,0.001]
[1763844909359,0.492,2738.7,2738.6,0.001]
[1763844910515,0.9581,2738.7,2738.6,0.001]
[1763844910956,0.492,2738.7,2738.6,0.001]
[1763844911791,0.61243441,2738.9,2738.6,0.001]
[1763844912489,0.14633441,2738.9,2738.8,0.4542]
[1763844912666,0.123,2739.1,2738.8,0.4542]
[1763844912871,0.26932852,2739.1,2738.8,0.9084]
[1763844913067,0.67483252,2739.1,2739.0,0.4542]
[1763844913956,0.55183252,2739.1,2739.0,0.4542]
[1763844914520,1.04383252,2739.1,2738.6,0.001]
[1763844914793,0.4005,2738.9,2738.6,0.001]
[1763844915151,0.8666,2738.9,2738.6,0.001]
[1763844916861,0.4005,2738.9,2738.6,0.001]
[1763844920885,0.8666,2738.9,2738.6,0.001]
[1763844921671,1.01293441,2738.9,2738.6,0.001]
[1763844922823,0.002,2739.2,2738.8,0.4542]
[1763844923017,0.002,2739.2,2739.1,0.5872]
[1763844923441,0.002,2739.2,2739.1,1.0414]
[1763844923643,0.002,2739.2,2739.1,4.29961567]
[1763844923840,0.002,2739.2,2739.1,4.74187724]
[1763844924834,0.002,2739.2,2739.1,8.39271145]
[1763844927806,0.002,2739.2,2739.1,5.35504578]
[1763844928503,0.002,2739.2,2739.1,5.13449578]
[1763844928698,0.002,2739.2,2739.1,5.35504578]
[1763844931404,0.002,2739.2,2739.1,1.25001157]
[1763844931614,0.002,2739.2,2739.1,4.67029578]
[1763844932134,0.002,2739.2,2739.1,5.12449578]
[1763844932516,0.002,2739.2,2739.1,4.67029578]
[1763844932835,0.002,2739.2,2739.1,7.03256306]
[1763844933753,0.494,2739.2,2739.1,2.80452885]
[1763844934054,0.494,2739.2,2739.1,2.36226728]
[1763844934549,0.002,2739.2,2739.1,2.91401728]
[1763844935846,0.002,2739.2,2739.1,9.38131877]
[1763844937120,0.002,2739.4,2739.3,0.09755]
[1763844937466,0.002,2739.4,2739.3,3.03691728]
[1763844937771,0.002,2739.4,2739.3,3.49111728]
[1763844938273,0.002,2739.4,2739.3,7.14168494]
[1763844938477,0.002,2739.4,2739.3,9.50395222]
[1763844939451,0.002,2739.4,2739.3,9.40640222]
[1763844939676,0.002,2739.4,2739.3,9.50395222]
[1763844940075,0.002,2739.4,2739.3,7.14168494]
[1763844940250,0.002,2739.4,2739.3,4.20221766]
[1763844940455,0.002,2739.4,2739.3,6.58993494]
[1763844940659,0.002,2739.4,2739.3,2.93936728]
[1763844940981,0.002,2739.4,2739.3,0.5771]
[1763844941139,0.002,2739.4,2739.2,3.74818609]
[1763844941975,0.002,2739.4,2739.2,7.39888702]
[1763844942165,0.002,2739.4,2739.2,3.74818609]
[1763844945559,0.9658,2739.3,2738.9,7.53109653]
[1763844945882,0.3881,2739.2,2738.9,7.53109653]
[1763844947361,0.3881,2739.2,2738.9,3.88]
[1763844947666,0.3881,2739.2,2738.9,7.53209467]
[1763844947860,0.3901,2739.2,2738.9,7.53209467]
[1763844948261,0.3901,2739.2,2738.9,3.65209467]
[1763844949566,0.3901,2739.2,2738.9,0.001]
[1763844949772,0.8611,2739.2,2738.9,0.001]
[1763844952066,0.3901,2739.2,2738.9,0.09855]
[1763844952500,0.3901,2739.2,2738.9,0.001]
[1763844952800,0.3901,2739.2,2739.0,0.09755]
[1763844956715,0.4938,2739.1,2738.9,0.001]
[1763844956880,0.4938,2739.1,2739.0,0.3415621]
[1763844957236,0.002,2739.2,2739.0,0.7957621]
[1763844958911,0.002,2739.2,2739.0,4.44670551]
[1763844959115,0.002,2739.2,2739.1,1.0314]
[1763844959285,0.002,2739.2,2739.1,1.12895]
[1763844959616,0.002,2739.2,2739.1,0.67475]
[1763844961024,0.002,2739.2,2739.1,0.4542]
[1763844961225,0.4968,2739.2,2739.0,0.123]
[1763844961529,0.002,2739.2,2739.1,0.55175]
[1763844962830,0.002,2739.2,2739.1,2.9141987]
[1763844963120,0.002,2739.2,2739.1,6.56503291]
[1763844964629,0.002,2739.2,2739.1,2.9141987]
[1763844965034,0.002,2739.2,2739.1,6.56503291]
[1763844965341,0.002,2739.2,2739.1,7.01923291]
[1763844966130,0.002,2739.2,2739.1,6.56503291]
[1763844968645,0.002,2739.2,2739.1,8.92748161]
[1763844971532,0.002,2739.2,2739.1,9.38168161]
[1763844973661,0.002,2739.2,2739.1,8.92748161]
[1763844973829,0.002,2739.2,2739.1,9.38168161]
[1763844974841,0.002,2739.2,2739.1,7.1868322]
[1763844977149,0.002,2739.2,2739.1,7.3098322]
[1763844978161,0.002,2739.2,2739.1,11.1898322]
[1763844978326,0.002,2739.4,2739.1,14.74311641]
[1763844978528,0.002,2739.4,2739.3,0.55175]
[1763844979167,0.002,2739.4,2739.3,0.67475]
[1763844979333,0.002,2739.4,2739.3,0.55175]
[1763844979664,0.4894,2739.4,2739.3,0.22055]
[1763844979825,0.002,2739.4,2739.3,0.67475]
[1763844980026,0.002,2739.4,2739.3,4.32531766]
[1763844981161,0.002,2739.4,2739.3,4.20231766]
[1763844981339,0.002,2739.4,2739.3,3.87111766]
[1763844981542,0.4894,2739.4,2739.3,3.87111766]
[1763844981756,0.4894,2739.4,2739.3,0.22055]
[1763844981954,0.978,2739.4,2739.2,3.65062497]
[1763844982157,0.978,2739.4,2739.2,3.77362497]
[1763844982357,0.3778,2739.3,2739.2,3.77362497]
[1763844984161,0.8664,2739.3,2739.2,3.65062497]
[1763844984363,0.8664,2739.3,2739.1,2.65304799]
[1763844984534,0.9749,2739.2,2739.1,6.3038822]
[1763844986657,0.9749,2739.2,2739.1,6.1808822]
[1763844988173,0.002,2739.4,2739.1,10.74011641]
[1763844988343,0.002,2739.4,2739.3,0.55175]
[1763844988548,0.002,2739.4,2739.3,0.67475]
[1763844989979,0.002,2739.4,2739.3,4.77951766]
[1763844990473,0.002,2739.4,2739.3,4.32531766]
[1763844990690,0.002,2739.4,2739.3,4.77951766]
[1763844991575,0.002,2739.4,2739.3,9.5665103]
[1763844992576,0.4894,2739.4,2739.3,7.75111766]
[1763844992748,0.978,2739.4,2739.3,7.62811766]
[1763844993541,0.002,2739.4,2739.3,8.08231766]
[1763844993737,0.002,2739.4,2739.3,3.97755]
[1763844993738,0.4894,2739.4,2739.3,3.97755]
[1763844993937,0.4894,2739.4,2739.3,8.08231766]
[1763844993938,0.002,2739.4,2739.3,8.08231766]
[1763844994775,0.002,2739.4,2739.3,8.53651766]
[1763844996878,0.002,2739.4,2739.3,8.20531766]
[1763844997253,0.002,2739.4,2739.3,8.65951766]
[1763845002999,0.002,2739.4,2739.3,8.08231766]
[1763845003149,0.4777,2739.4,2739.3,7.75111766]
[1763845003582,0.002,2739.4,2739.3,8.20531766]
[1763845003796,0.002,2739.4,2739.3,8.65951766]
[1763845003997,0.002,2739.4,2739.3,8.20531766]
[1763845006293,0.9479,2739.4,2739.3,3.74811766]
[1763845007892,0.002,2739.4,2739.3,3.74811766]
[1763845009493,0.9479,2739.4,2739.3,3.74811766]
[1763845010393,0.4777,2739.4,2739.3,3.74811766]
[1763845010900,0.4777,2739.4,2739.3,3.87111766]
[1763845011697,0.9479,2739.4,2739.3,3.87111766]
[1763845012699,0.4777,2739.4,2739.3,3.87111766]
[1763845013581,0.002,2739.4,2739.3,4.36182333]
[1763845013782,0.002,2739.4,2739.3,8.65951766]
[1763845018304,0.002,2739.4,2739.3,9.9720143]
[1763845018875,0.002,2739.7,2739.5,3.847]
[1763845019075,0.57262139,2740.9,2740.8,0.09755]
[1763845019276,0.30344318,2741.0,2740.9,0.09755]
[1763845019686,0.77914318,2741.0,2740.9,0.09755]
[1763845020078,0.77914318,2741.0,2739.4,0.476]
[1763845020394,3.64759394,2741.6,2740.3,0.09755]
[1763845020395,0.4077,2740.8,2740.3,0.09755]
[1763845020578,0.4077,2740.8,2739.7,0.599]
[1763845020579,1.18333715,2741.6,2740.6,3.64883602]
[1763845020779,1.18333715,2741.6,2740.7,0.09755]
[1763845021184,1.18333715,2741.6,2740.3,3.64920189]
[1763845021185,0.4757,2740.8,2740.3,0.123]
[1763845021392,0.4757,2740.4,2740.3,0.123]
[1763845021595,0.4757,2740.4,2740.2,0.09755]
[1763845021803,0.4702,2741.3,2740.2,0.3603098]
[1763845021804,0.4757,2740.3,2740.2,0.3603098]
[1763845022098,0.4702,2741.2,2740.3,1.134]
[1763845022280,0.4702,2741.2,2741.0,0.09755]
[1763845022481,0.4702,2741.2,2740.2,0.2627598]
[1763845022680,0.4702,2741.2,2740.3,3.86976468]
[1763845023087,0.4757,2740.4,2740.3,3.86976468]
[1763845023380,0.4702,2741.2,2740.3,3.86976468]
[1763845023584,0.4702,2741.1,2740.6,0.09755]
[1763845024017,0.4757,2740.7,2740.4,0.09755]
[1763845024220,0.4702,2741.1,2740.4,0.09755]
[1763845024422,0.1831,2741.4,2740.4,0.09755]
[1763845024423,0.4757,2740.5,2740.4,0.09755]
[1763845024828,0.9459,2740.5,2740.1,6.27707733]
[1763845025002,0.4734,2740.2,2740.1,3.87002934]
[1763845025222,0.9436,2740.2,2740.1,3.87002934]
[1763845025716,0.4734,2740.2,2740.1,6.40007733]
[1763845025915,0.9662,2740.2,2740.1,6.40007733]
[1763845026117,0.9662,2740.2,2740.1,2.75059799]
[1763845026310,0.9662,2740.2,2740.1,6.40009983]
[1763845027919,0.4928,2740.8,2740.2,0.09755]
[1763845028240,0.1831,2741.4,2740.7,0.4898]
[1763845028241,0.6759,2741.4,2740.7,0.4898]
[1763845028392,0.4928,2741.3,2741.0,0.09755]
[1763845028608,0.4784,2741.1,2741.0,0.09755]
[1763845029236,0.1831,2741.4,2741.2,0.09755]
[1763845029412,0.1831,2741.4,2741.2,2.62759799]
[1763845029613,0.1831,2741.4,2741.2,6.39854067]
[1763845030845,0.9712,2741.3,2741.2,0.22055]
[1763845031048,0.9712,2741.3,2741.2,0.09755]
[1763845031215,0.9712,2741.3,2741.2,0.62262793]
[1763845031417,0.9712,2741.3,2741.2,4.27066528]
[1763845031652,0.9712,2741.3,2741.2,0.62262793]
[1763845032146,0.9712,2741.3,2741.2,4.27066528]
[1763845032357,0.4784,2741.3,2741.2,4.27066528]
[1763845033547,0.4784,2741.3,2741.2,0.62262793]
[1763845033848,0.9712,2741.3,2741.2,0.22055]
[1763845034150,0.9712,2741.3,2740.3,0.90699264]
[1763845034151,0.9712,2741.3,2741.0,0.123]
[1763845034459,0.4928,2741.2,2741.0,0.123]
[1763845034638,0.2177,2741.1,2741.0,0.123]
[1763845034839,0.2177,2741.1,2740.8,0.09755]
[1763845035152,0.4758,2740.9,2740.7,0.123]
[1763845035350,0.4928,2741.0,2740.7,0.123]
[1763845035530,0.4784,2740.8,2740.7,0.123]
[1763845035954,0.9712,2740.8,2740.7,3.77170288]
[1763845036157,0.9712,2740.8,2740.7,0.123]
[1763845036535,0.9712,2740.8,2740.5,3.77192392]
[1763845036742,0.2177,2740.6,2740.5,3.77192392]
[1763845037262,0.2177,2740.6,2740.5,0.123]
[1763845037462,0.2177,2740.6,2740.5,3.77196916]
[1763845038049,0.7105,2740.6,2740.5,3.77196916]
[1763845038961,0.7105,2740.6,2740.5,0.123]
[1763845039358,0.2177,2740.6,2740.5,4.1589346]
[1763845039664,0.2177,2740.6,2740.5,4.2564846]
[1763845040064,0.7105,2740.6,2740.5,4.2564846]
[1763845040859,0.7105,2740.6,2740.5,0.60751544]
[1763845041158,0.7105,2740.6,2740.3,0.123]
[1763845041361,0.4758,2740.4,2740.2,7.39622012]
[1763845041664,0.2202,2740.3,2740.2,3.86985147]
[1763845042259,0.4928,2740.6,2740.2,7.51922012]
[1763845043161,0.4928,2741.1,2740.5,0.58735]
[1763845043363,0.4928,2741.1,2740.7,0.09755]
[1763845043773,0.4784,2740.8,2740.7,0.09755]
[1763845044145,0.9712,2740.8,2740.7,0.09755]
[1763845044674,0.9712,2740.8,2740.5,3.86944574]
[1763845044865,0.2177,2740.6,2740.5,3.86944574]
[1763845045177,0.4928,2741.3,2740.5,3.86944574]
[1763845045379,0.4928,2741.3,2740.5,8.0082149]
[1763845046875,0.4928,2741.3,2740.8,0.09755]
[1763845047263,0.4928,2741.3,2740.9,0.123]
[1763845047775,0.4784,2741.0,2740.9,0.123]
[1763845048381,0.4784,2741.0,2740.9,3.77143664]
[1763845048956,0.1851,2741.4,2740.9,7.90967328]
[1763845049179,0.6779,2741.4,2741.0,0.09755]
[1763845049548,0.4928,2741.3,2741.0,0.09755]
[1763845050182,0.4784,2741.1,2741.0,0.09755]
[1763845050363,0.4784,2741.1,2740.5,0.001]
[1763845050364,0.4784,2741.1,2740.6,4.55582355]
[1763845050566,0.49,2741.0,2740.6,3.77183091]
[1763845050757,0.49,2741.0,2740.9,2.35961037]
[1763845051098,0.9684,2741.0,2740.9,2.35961037]
[1763845052888,0.002,2741.3,2740.9,6.10559051]
[1763845053091,0.002,2741.3,2741.2,2.35961037]
[1763845053592,0.405504,2741.2,2740.5,0.001]
[1763845053889,0.9732,2741.3,2740.9,2.35961037]
[1763845053890,0.2177,2741.0,2740.9,2.35961037]
[1763845054086,0.7105,2741.0,2740.9,2.35961037]
[1763845054391,0.7105,2741.0,2740.8,0.09755]
[1763845054392,0.2177,2741.0,2740.8,0.09755]
[1763845054591,0.4928,2741.0,2740.9,2.35961037]
[1763845055088,0.4784,2741.0,2740.9,2.35961037]
[1763845056388,0.9542,2741.0,2740.5,0.001]
[1763845056578,0.4822,2740.6,2740.5,0.001]
[1763845056781,0.4822,2740.6,2740.5,2.36061037]
[1763845056981,0.958,2740.6,2740.5,2.36061037]
[1763845059901,0.958,2740.6,2740.5,6.00957953]
[1763845060267,0.958,2740.6,2740.5,2.36061037]
[1763845064268,0.4822,2740.6,2740.5,2.36061037]
[1763845064987,0.4822,2740.6,2740.5,6.00957953]
[1763845065181,0.4954,2741.0,2740.5,8.9200399]
[1763845065366,0.4954,2741.0,2740.8,2.35961037]
[1763845066005,0.4954,2741.2,2740.8,2.35961037]
[1763845066219,0.4954,2741.2,2741.0,2.35961037]
[1763845066572,0.4562,2741.1,2741.0,2.35961037]
[1763845067103,0.9516,2741.1,2741.0,2.35961037]
[1763845068708,0.4562,2741.1,2741.0,2.35961037]
[1763845071272,0.9516,2741.1,2741.0,2.35961037]
[1763845074177,0.9516,2741.1,2740.9,0.001]
[1763845074371,0.7324,2741.0,2740.9,0.001]
[1763845074775,0.002,2741.3,2740.9,3.09875577]
[1763845074971,0.4974,2741.3,2741.2,2.35961037]
[1763845075188,0.4974,2741.3,2741.0,2.35961037]
[1763845075621,0.4562,2741.1,2741.0,2.35961037]
[1763845076086,0.9516,2741.1,2741.0,2.35961037]
[1763845079658,0.002,2741.3,2741.0,9.43112427]
[1763845079797,0.002,2741.3,2741.2,2.96411037]
[1763845079998,0.002,2741.3,2741.2,3.06166037]
[1763845080233,0.123,2742.1,2741.3,7.29580854]
[1763845080426,0.1312,2742.0,2741.5,0.09755]
[1763845080629,0.1312,2742.0,2741.9,2.35961037]
[1763845080798,0.4455,2742.0,2741.7,2.35961037]
[1763845081197,0.1312,2742.0,2741.7,2.35961037]
[1763845081424,0.3143,2741.8,2741.7,2.35961037]
[1763845081821,0.3143,2741.8,2741.5,2.35961037]
[1763845082222,0.3143,2741.8,2741.7,2.35961037]
[1763845082625,0.405504,2742.2,2741.7,2.81291037]
[1763845082826,0.3143,2742.5,2742.1,2.35961037]
[1763845083229,0.3143,2742.8,2742.3,2.35961037]
[1763845083405,0.4373,2742.9,2742.3,2.35961037]
[1763845083601,0.4373,2742.9,2742.1,2.35961037]
[1763845083806,0.3143,2742.8,2742.1,2.35961037]
[1763845085567,0.405504,2742.7,2741.7,0.123]
[1763845085736,0.405504,2742.7,2741.8,2.35961037]
[1763845085934,0.3143,2742.6,2741.8,2.35961037]
[1763845087227,0.1312,2741.9,2741.8,2.35961037]
[1763845087425,0.1312,2741.9,2741.6,2.35961037]
[1763845087630,0.1312,2741.9,2741.8,2.35961037]
[1763845087828,0.002,2742.8,2741.8,4.95518178]
[1763845088032,0.002,2743.3,2741.8,4.95518178]
[1763845088033,2.59639962,2744.3,2743.4,0.4687]
[1763845088263,0.628,2744.6,2744.0,2.35961037]
[1763845088574,0.4968,2744.4,2744.1,2.48361037]
[1763845088809,0.1312,2744.6,2744.3,2.35961037]
[1763845088923,0.1312,2746.0,2744.6,0.90699264]
[1763845089255,0.4968,2745.9,2745.2,6.78944376]
[1763845089465,0.1312,2746.0,2745.3,0.22155]
[1763845089621,0.6831,2746.2,2745.6,3.24427894]
[1763845089816,0.6831,2746.2,2745.7,0.124]
[1763845090020,0.4968,2746.1,2745.4,0.09755]
[1763845090265,0.1863,2746.2,2745.6,3.14672894]
[1763845090418,0.6831,2746.2,2745.7,0.124]
[1763845090620,0.6831,2746.2,2745.6,3.14672894]
[1763845090850,0.4968,2746.1,2745.2,3.14672894]
[1763845091150,0.4888,2745.7,2745.3,0.124]
[1763845091525,0.6831,2745.6,2745.4,0.124]
[1763845091727,0.6831,2745.6,2745.5,0.124]
[1763845091931,0.6831,2745.6,2744.9,4.55010883]
[1763845092129,0.1863,2745.6,2745.0,0.22155]
[1763845093140,0.1863,2745.8,2745.0,3.86445028]
[1763845093344,0.1863,2745.8,2745.2,0.09755]
[1763845093648,0.1863,2745.8,2745.3,0.124]
[1763845093849,0.4968,2745.7,2745.3,0.124]
[1763845094052,0.1863,2745.8,2745.3,0.124]
[1763845094053,0.1863,2745.8,2745.3,0.22155]
[1763845094260,0.1863,2746.2,2745.6,3.14672894]
[1763845094429,0.6831,2746.2,2745.6,3.24427894]
[1763845094635,0.6831,2746.2,2745.7,0.124]
[1763845095149,0.4968,2746.1,2745.7,0.124]
[1763845095460,0.4968,2746.1,2745.3,0.4804]
[1763845095670,0.4888,2745.4,2744.8,1.00454264]
[1763845095834,0.4888,2745.4,2744.9,0.124]
[1763845096642,0.4888,2745.4,2744.8,4.64778572]
[1763845096855,0.6831,2745.8,2745.1,0.09755]
[1763845097556,0.6831,2745.8,2745.2,3.64272184]
[1763845097759,0.6831,2745.8,2745.3,0.123]
[1763845097930,0.1863,2745.8,2745.3,0.123]
[1763845098122,0.4968,2746.1,2745.3,0.22055]
[1763845098328,0.4968,2746.1,2745.6,0.09755]
[1763845098563,0.4968,2746.1,2745.7,0.123]
[1763845098870,0.1863,2746.2,2745.7,0.123]
[1763845099032,0.6831,2746.2,2745.7,0.123]
[1763845099446,0.4968,2746.1,2745.6,0.09755]
[1763845099680,0.4968,2746.1,2745.7,0.123]
[1763845099831,0.405504,2746.6,2745.7,0.123]
[1763845099832,0.4968,2746.3,2745.7,0.123]
[1763845100031,0.4968,2747.6,2746.5,0.6597]
[1763845100267,0.4968,2747.6,2746.6,3.5486726]
[1763845101253,0.4968,2747.6,2746.6,0.22055]
[1763845101482,0.4968,2747.6,2746.2,3.3281226]
[1763845101783,0.6751,2746.7,2746.3,0.22055]
[1763845101935,0.6751,2746.7,2746.3,0.09755]
[1763845102131,0.6751,2746.7,2746.4,0.123]
[1763845102335,0.4968,2746.6,2746.4,0.123]
[1763845102738,0.1863,2746.7,2746.4,0.123]
[1763845102938,0.6831,2746.7,2746.4,0.123]
[1763845103148,0.6831,2746.7,2746.1,3.83249061]
[1763845103358,0.1863,2746.7,2746.2,0.123]
[1763845103734,0.6831,2746.7,2746.2,0.123]
[1763845104982,0.4968,2746.6,2746.0,0.09755]
[1763845105187,0.4968,2746.6,2746.1,0.123]
[1763845106755,0.4968,2746.6,2745.9,3.64177622]
[1763845106963,0.4968,2746.6,2746.0,0.123]
[1763845107364,0.4888,2746.1,2745.7,0.1914]
[1763845107564,0.4968,2746.6,2745.8,0.123]
[1763845107773,0.4968,2746.5,2745.8,0.123]
[1763845108989,0.4968,2746.5,2745.5,0.1914]
[1763845108990,0.4888,2745.9,2745.5,0.1914]
[1763845109158,0.4888,2745.9,2745.8,0.123]
[1763845111563,1.1719,2745.9,2744.9,0.09755]
[1763845111758,0.6831,2745.9,2744.9,0.09755]
[1763845111958,0.4968,2745.8,2744.7,3.64338543]
[1763845112166,0.4968,2745.8,2744.8,0.22055]
[1763845112896,0.4968,2745.8,2745.1,0.09755]
[1763845113189,0.4968,2745.8,2744.8,0.123]
[1763845113482,0.4968,2745.8,2744.9,0.123]
[1763845114623,0.4888,2745.0,2744.7,0.123]
[1763845114956,0.6831,2744.9,2744.7,0.123]
[1763845115165,0.4888,2744.8,2744.7,0.123]
[1763845115759,0.1856,2745.1,2744.7,0.123]
[1763845116169,0.4734,2745.0,2744.7,0.123]
[1763845117695,0.1856,2745.1,2744.7,0.123]
[1763845117899,0.4734,2745.0,2744.7,0.123]
[1763845118080,0.4694,2744.8,2744.5,0.1724]
[1763845118287,0.4694,2744.8,2744.6,0.123]
[1763845118658,0.4732,2744.7,2744.6,0.123]
[1763845119769,0.4732,2744.7,2744.1,0.09755]
[1763845119975,0.9501,2744.7,2744.2,0.123]
[1763845120499,0.4769,2744.6,2744.1,0.09755]
[1763845120698,0.1856,2745.1,2744.2,0.123]
[1763845120993,0.6625,2745.1,2744.2,0.22055]
[1763845121358,0.4769,2745.0,2744.2,0.22055]
[1763845123095,0.4769,2745.0,2744.2,3.86456283]
[1763845123300,0.002,2744.8,2744.2,3.76701283]
[1763845123679,0.002,2744.8,2744.2,0.123]
[1763845123912,0.4769,2744.7,2744.2,0.123]
[1763845124297,0.4769,2744.7,2744.2,3.76702131]
[1763845125775,0.4769,2744.7,2744.2,4.26102131]
[1763845126212,0.002,2744.8,2744.2,4.26102131]
[1763845126911,0.4789,2744.8,2744.2,0.123]
[1763845127287,0.4789,2744.8,2744.2,3.76703483]
[1763845127505,0.4789,2744.8,2744.2,0.123]
[1763845127708,0.4789,2744.8,2744.1,3.64412053]
[1763845127709,0.4789,2744.8,2744.3,0.123]
[1763845129399,0.4789,2744.8,2744.3,3.76688684]
[1763845130190,0.4789,2744.8,2744.3,0.123]
[1763845131412,0.4789,2744.8,2744.0,3.74177957]
[1763845131623,0.4732,2744.4,2743.8,0.191]
[1763845131911,0.4732,2744.4,2743.9,0.123]
[1763845132418,0.4769,2744.3,2744.0,0.123]
[1763845133480,0.4769,2744.3,2743.8,0.191]
[1763845133681,0.4769,2744.3,2743.9,0.123]
[1763845135635,0.4732,2744.0,2743.5,0.001]
[1763845135799,0.4769,2744.3,2743.6,0.123]
[1763845135989,0.4769,2744.2,2743.6,0.123]
[1763845136732,0.4769,2744.2,2743.5,0.001]
[1763845136910,0.4769,2744.2,2743.6,0.123]
[1763845138318,0.125,2744.8,2744.1,3.9970226]
[1763845138319,0.002,2744.8,2744.1,3.9970226]
[1763845138624,0.002,2744.8,2744.7,0.4779]
[1763845138785,0.002,2744.8,2744.7,0.6019]
[1763845139927,0.002,2744.8,2744.7,0.124]
[1763845140628,0.002,2744.8,2744.7,0.6019]
[1763845140790,0.002,2744.8,2744.7,1.19345]
[1763845141742,0.002,2744.8,2744.7,4.73928543]
[1763845142305,0.002,2744.8,2744.7,8.06740803]
[1763845145260,0.002,2744.8,2744.7,0.4779]
[1763845145438,0.002,2744.8,2744.7,4.24528543]
[1763845145934,0.002,2744.8,2744.7,4.73928543]
[1763845147010,0.002,2744.8,2744.7,1.0959]
[1763845147202,0.002,2744.8,2744.7,0.4779]
[1763845147403,0.492,2744.8,2744.3,3.8187226]
[1763845147937,0.9544,2744.8,2744.4,0.124]
[1763845148101,0.9544,2744.8,2744.1,4.74210578]
[1763845148436,0.9544,2744.8,2744.2,0.124]
[1763845149730,0.9544,2744.8,2744.2,3.76798109]
[1763845150329,0.492,2744.8,2744.2,3.6440438]
[1763845150547,0.4624,2744.7,2744.3,0.123]
[1763845150765,0.2972,2744.3,2744.0,4.55124099]
[1763845151067,0.4624,2744.7,2744.1,0.123]
[1763845151933,0.4624,2744.7,2744.2,0.123]
[1763845154867,0.4624,2744.7,2744.2,3.76704769]
[1763845155665,0.002,2744.8,2744.3,0.4675]
[1763845156480,0.4751,2744.8,2744.2,3.76704769]
[1763845161056,0.4751,2744.8,2744.2,7.87859695]
[1763845161654,0.002,2744.8,2744.7,0.4576]
[1763845161880,0.002,2744.8,2744.7,0.5806]
[1763845162079,0.002,2744.8,2744.7,1.0481]